bitfinex/quotes_BTCUSD_20240730
["timestamp","ask_amount","ask_price","bid_price","bid_amount"]
[1722319609586,0.02431236,66657.0,66656.0,1.55640404]
[1722319609827,0.02431236,66657.0,66656.0,1.57040404]
[1722319610058,0.02431236,66657.0,66656.0,1.58440404]
[1722319610551,0.00078,66657.0,66656.0,1.57040404]
[1722319610752,0.00078,66657.0,66656.0,1.58440404]
[1722319611362,0.00078,66657.0,66656.0,1.57040404]
[1722319611553,0.00078,66657.0,66656.0,1.69505435]
[1722319611902,0.00078,66657.0,66656.0,1.70905435]
[1722319612106,0.00078,66657.0,66656.0,1.69505435]
[1722319612257,0.00078,66657.0,66656.0,1.70905435]
[1722319613444,0.4657,66675.0,66665.0,0.774215]
[1722319613645,0.00083,66678.0,66665.0,1.60570435]
[1722319613894,0.00083,66678.0,66665.0,2.11579136]
[1722319613895,2.99691627,66666.0,66665.0,2.11579136]
[1722319614194,2.11278431,66666.0,66665.0,2.13408536]
[1722319614800,2.11278431,66666.0,66665.0,2.14808536]
[1722319615031,2.11278431,66666.0,66665.0,2.16208536]
[1722319615227,2.11278431,66666.0,66665.0,2.14808536]
[1722319616679,2.11278431,66666.0,66665.0,2.15691974]
[1722319617088,2.11278431,66666.0,66665.0,2.39691742]
[1722319617295,2.12232679,66666.0,66665.0,2.39691742]
[1722319617532,2.12232679,66666.0,66665.0,2.39691687]
[1722319617749,2.09879831,66666.0,66665.0,2.39691687]
[1722319618351,2.09879831,66666.0,66665.0,2.41091687]
[1722319618878,2.09879831,66666.0,66665.0,2.39691687]
[1722319619093,2.09879831,66666.0,66665.0,2.41091687]
[1722319619303,2.09879831,66666.0,66665.0,2.38292016]
[1722319619527,2.09879831,66666.0,66665.0,2.39692016]
[1722319619721,2.09879831,66666.0,66665.0,2.41092016]
[1722319620064,2.09879831,66666.0,66665.0,2.38292016]
[1722319620418,2.09879831,66666.0,66665.0,2.39692005]
[1722319621032,2.12232664,66666.0,66665.0,2.15691405]
[1722319621807,2.12232664,66666.0,66665.0,2.17091405]
[1722319622008,2.12232664,66666.0,66665.0,2.15691405]
[1722319622225,2.09879831,66666.0,66665.0,1.99861405]
[1722319622427,2.09879831,66666.0,66665.0,1.88799442]
[1722319622670,2.09879831,66666.0,66665.0,1.91262044]
[1722319622946,2.09879831,66666.0,66665.0,1.89862044]
[1722319623141,2.09879831,66666.0,66665.0,0.80914938]
[1722319623355,2.09879831,66666.0,66665.0,1.06115538]
[1722319623551,2.09879831,66666.0,66665.0,1.03315538]
[1722319623955,2.09879831,66666.0,66665.0,1.04715538]
[1722319624259,2.09879831,66666.0,66665.0,0.79514938]
[1722319624467,2.09879831,66666.0,66665.0,0.36884338]
[1722319624837,2.09879831,66666.0,66665.0,0.38284338]
[1722319625038,2.09879831,66666.0,66665.0,0.60884938]
[1722319625254,2.09879831,66666.0,66665.0,0.62284938]
[1722319625457,2.12233012,66666.0,66665.0,0.62284938]
[1722319625660,2.12233012,66666.0,66665.0,0.85885538]
[1722319625864,2.09879831,66666.0,66665.0,1.14359958]
[1722319626066,2.09879831,66666.0,66665.0,1.29468842]
[1722319626346,2.09879831,66666.0,66665.0,1.47093033]
[1722319626529,2.09879831,66666.0,66665.0,1.45693033]
[1722319626727,2.09879831,66666.0,66665.0,1.48493033]
[1722319627368,2.09879831,66666.0,66665.0,1.47093033]
[1722319627563,2.09879831,66666.0,66665.0,1.48493033]
[1722319627882,2.09879831,66666.0,66665.0,1.47093033]
[1722319628308,2.09879831,66666.0,66665.0,1.48493033]
[1722319628707,2.09879831,66666.0,66665.0,1.60029442]
[1722319628930,2.09879831,66666.0,66665.0,1.72492852]
[1722319629245,2.12232853,66666.0,66665.0,1.48492252]
[1722319630257,2.09879831,66666.0,66665.0,1.48492252]
[1722319630656,2.09879831,66666.0,66665.0,1.72492852]
[1722319631196,1.8216034,66666.0,66665.0,1.88322852]
[1722319631629,1.8216034,66666.0,66665.0,2.12323452]
[1722319632014,1.8216034,66666.0,66665.0,1.60029442]
[1722319632214,1.8216034,66666.0,66665.0,1.6969211]
[1722319632414,1.8216034,66666.0,66665.0,1.7249211]
[1722319632652,1.8224334,66666.0,66665.0,1.7249211]
[1722319632796,1.8224334,66666.0,66665.0,1.7109211]
[1722319633417,1.8224334,66666.0,66665.0,1.7249211]
[1722319633616,1.84596251,66666.0,66665.0,1.7249211]
[1722319633782,1.84596251,66666.0,66665.0,1.7109211]
[1722319634147,1.8224334,66666.0,66665.0,1.7109211]
[1722319634345,1.8224334,66666.0,66665.0,1.4489151]
[1722319634551,1.8224334,66666.0,66665.0,1.01758206]
[1722319634900,1.8224334,66666.0,66665.0,1.03158206]
[1722319635111,1.8224334,66666.0,66665.0,1.01758206]
[1722319635237,1.8224334,66666.0,66665.0,1.03158206]
[1722319635439,1.8224334,66666.0,66665.0,1.01758206]
[1722319635757,1.8224334,66666.0,66665.0,0.87895538]
[1722319635981,1.8224334,66666.0,66665.0,1.14060628]
[1722319636782,1.8224334,66666.0,66665.0,1.15460628]
[1722319637211,1.84596437,66666.0,66665.0,1.15460628]
[1722319638307,1.8224334,66666.0,66665.0,1.15460628]
[1722319639684,1.8224334,66666.0,66665.0,1.16460628]
[1722319640487,1.8224334,66666.0,66665.0,1.65294532]
[1722319640653,1.8224334,66666.0,66665.0,1.71594532]
[1722319641693,1.8224334,66666.0,66665.0,1.59129442]
[1722319641837,1.8224334,66666.0,66665.0,1.71592568]
[1722319642267,1.73386846,66666.0,66665.0,2.21423168]
[1722319642603,1.68653851,66666.0,66665.0,2.21423168]
[1722319642804,1.61000536,66666.0,66665.0,2.21423168]
[1722319643189,1.46506536,66666.0,66665.0,2.21423168]
[1722319643397,1.23008257,66666.0,66665.0,2.30451168]
[1722319643642,1.14008257,66666.0,66665.0,2.36681435]
[1722319643804,1.08008257,66666.0,66665.0,2.60682035]
[1722319644009,1.03908257,66666.0,66665.0,2.59282035]
[1722319644364,1.03908257,66666.0,66665.0,2.57882035]
[1722319644498,0.97908257,66666.0,66665.0,2.60682035]
[1722319644694,0.00083,66678.0,66677.0,1.381891]
[1722319644922,0.00083,66678.0,66677.0,1.96752404]
[1722319645086,0.00083,66678.0,66677.0,2.11512557]
[1722319645284,0.00083,66678.0,66677.0,1.87516357]
[1722319645487,0.00083,66678.0,66677.0,1.8751635]
[1722319645701,0.02435551,66678.0,66677.0,1.8751635]
[1722319645918,0.02435551,66678.0,66677.0,1.6819635]
[1722319646118,0.00083,66678.0,66677.0,1.6819635]
[1722319647058,0.00083,66678.0,66677.0,1.6959635]
[1722319648189,0.00083,66678.0,66677.0,1.58536204]
[1722319648396,0.00083,66678.0,66677.0,1.70996295]
[1722319649504,0.02435551,66678.0,66677.0,1.70996295]
[1722319650082,0.02435551,66678.0,66677.0,1.58536204]
[1722319650289,0.02435551,66678.0,66677.0,1.70996317]
[1722319650705,0.02435551,66678.0,66677.0,1.7188109]
[1722319651264,0.02435551,66678.0,66677.0,1.9587729]
[1722319651668,0.02435551,66678.0,66677.0,1.95877174]
[1722319654272,0.02435551,66678.0,66677.0,1.94477174]
[1722319654474,0.02435551,66678.0,66677.0,1.95877174]
[1722319654977,0.02435551,66678.0,66677.0,1.84817177]
[1722319655167,0.02435551,66678.0,66677.0,1.9587717]
[1722319655379,0.02435551,66678.0,66677.0,1.84817177]
[1722319655528,0.02435551,66678.0,66677.0,1.97277075]
[1722319655973,5.1e-07,66678.0,66677.0,1.95877075]
[1722319656349,0.00083,66680.0,66677.0,1.95877075]
[1722319656350,0.00083,66680.0,66679.0,1.523152]
[1722319656548,0.00083,66680.0,66679.0,1.92138402]
[1722319656751,0.00083,66680.0,66679.0,2.01166402]
[1722319656954,0.00083,66681.0,66680.0,1.613416]
[1722319657160,0.0014942,66695.0,66687.0,0.663289]
[1722319657382,0.00084,66697.0,66687.0,1.06151106]
[1722319657697,0.00084,66697.0,66687.0,1.78128906]
[1722319657698,0.0023342,66697.0,66687.0,1.78128906]
[1722319658083,0.00084,66697.0,66687.0,1.78128906]
[1722319658286,0.00084,66697.0,66687.0,1.71668863]
[1722319658484,0.0023342,66697.0,66687.0,1.71668863]
[1722319658815,0.00084,66697.0,66687.0,1.71668863]
[1722319659192,0.0023342,66697.0,66687.0,1.71668863]
[1722319659395,0.0023342,66697.0,66687.0,1.73068863]
[1722319659784,0.00084,66697.0,66687.0,1.71668863]
[1722319660190,0.03197288,66688.0,66687.0,1.73068863]
[1722319660374,0.03197288,66688.0,66687.0,1.74468863]
[1722319660771,0.03197288,66688.0,66687.0,1.73068863]
[1722319661022,0.03197288,66688.0,66687.0,1.74468863]
[1722319661474,0.00845,66688.0,66687.0,1.73068863]
[1722319661616,0.00845,66688.0,66687.0,1.55198863]
[1722319661817,0.00845,66688.0,66687.0,1.56598863]
[1722319662483,0.00845,66688.0,66687.0,1.30606263]
[1722319662687,0.00845,66688.0,66687.0,1.14847404]
[1722319663165,0.00845,66688.0,66687.0,1.1575483]
[1722319663981,0.00845,66688.0,66687.0,1.1805483]
[1722319664138,0.00845,66688.0,66687.0,1.1665483]
[1722319664951,0.00845,66688.0,66687.0,1.1805483]
[1722319665346,0.00845,66688.0,66687.0,1.1525483]
[1722319665546,0.00345,66688.0,66687.0,1.28714951]
[1722319665752,0.0049442,66688.0,66687.0,1.30114951]
[1722319666375,0.0049442,66688.0,66687.0,1.31514951]
[1722319666994,0.00345,66688.0,66687.0,1.31514951]
[1722319667614,0.0049442,66688.0,66687.0,1.31514951]
[1722319667812,0.0049442,66688.0,66687.0,1.31514919]
[1722319668014,0.00345,66688.0,66687.0,1.31514919]
[1722319668190,0.0049442,66688.0,66687.0,1.31514919]
[1722319668631,0.0049442,66688.0,66687.0,1.30514919]
[1722319669025,0.02697308,66688.0,66687.0,1.30514919]
[1722319669228,0.00345,66688.0,66687.0,1.30514919]
[1722319669404,0.0049442,66688.0,66687.0,1.31514919]
[1722319669807,0.00345,66688.0,66687.0,1.39554919]
[1722319670207,0.00345,66688.0,66687.0,1.65547519]
[1722319671133,0.00345,66688.0,66687.0,1.65545799]
[1722319671846,0.00345,66688.0,66687.0,1.64145799]
[1722319672059,0.00345,66688.0,66687.0,1.62745799]
[1722319672060,0.02697216,66688.0,66687.0,1.62745799]
[1722319672227,0.02697216,66688.0,66687.0,1.64145799]
[1722319672426,0.02697216,66688.0,66687.0,1.65545799]
[1722319672635,0.02697216,66688.0,66687.0,1.62745799]
[1722319672996,0.02697216,66688.0,66687.0,1.64145799]
[1722319673574,0.00345,66688.0,66687.0,1.64145799]
[1722319674454,0.00345,66688.0,66687.0,1.62746012]
[1722319674609,0.00345,66688.0,66687.0,1.65546012]
[1722319674812,0.00345,66688.0,66687.0,1.5308743]
[1722319675014,0.00345,66688.0,66687.0,1.64146008]
[1722319675236,0.00345,66688.0,66687.0,1.62746008]
[1722319675412,0.00345,66688.0,66687.0,1.64146008]
[1722319675615,0.00345,66688.0,66687.0,1.79618259]
[1722319676015,0.00345,66688.0,66687.0,1.65746008]
[1722319676219,0.00345,66688.0,66687.0,1.64346008]
[1722319676441,0.00345,66688.0,66687.0,1.56306008]
[1722319676643,0.00345,66688.0,66687.0,1.57706008]
[1722319677024,0.02697187,66688.0,66687.0,1.57706008]
[1722319677416,0.02697187,66688.0,66687.0,1.56306008]
[1722319677616,0.02697187,66688.0,66687.0,1.57706726]
[1722319677855,0.02697187,66688.0,66687.0,1.56306726]
[1722319678260,0.02697187,66688.0,66687.0,1.57706726]
[1722319678636,0.02697187,66688.0,66687.0,1.73175499]
[1722319678836,0.02697187,66688.0,66687.0,1.81185499]
[1722319679040,0.02697187,66688.0,66687.0,2.05178099]
[1722319679248,0.02697187,66688.0,66687.0,2.11728099]
[1722319680053,0.02697187,66688.0,66687.0,1.87735499]
[1722319680256,0.02697187,66688.0,66687.0,1.78985499]
[1722319680590,0.02697187,66688.0,66687.0,1.28214126]
[1722319680824,0.16537187,66688.0,66687.0,1.13151354]
[1722319681351,0.14185,66688.0,66687.0,1.13151354]
[1722319681751,0.14185,66688.0,66687.0,1.12243928]
[1722319681952,0.14185,66688.0,66687.0,0.64258728]
[1722319682157,0.14185,66688.0,66687.0,0.028]
[1722319682356,0.14185,66688.0,66687.0,0.147963]
[1722319682814,0.14185,66688.0,66687.0,0.028]
[1722319683576,0.14185,66688.0,66687.0,0.014]
[1722319683577,0.261811,66688.0,66687.0,0.014]
[1722319683799,0.14185,66688.0,66687.0,0.014]
[1722319684045,0.0761,66687.0,66684.0,0.119967]
[1722319684255,0.0650942,66686.0,66684.0,0.119967]
[1722319684798,0.0650942,66686.0,66681.0,0.239947]
[1722319685009,0.0771,66685.0,66683.0,0.11997]
[1722319685215,0.0650942,66684.0,66683.0,0.11997]
[1722319686494,0.0650942,66684.0,66683.0,0.359911]
[1722319686495,0.0636,66684.0,66683.0,0.359911]
[1722319686693,0.0650942,66684.0,66683.0,0.359911]
[1722319687186,0.0650942,66684.0,66683.0,0.599852]
[1722319687394,0.0650942,66684.0,66683.0,0.839793]
[1722319687597,0.0636,66684.0,66683.0,0.867793]
[1722319687930,0.0636,66684.0,66683.0,0.97840663]
[1722319688326,0.0871254,66684.0,66683.0,0.99240663]
[1722319688859,0.0871254,66684.0,66683.0,0.867793]
[1722319689470,0.0636,66684.0,66683.0,0.867793]
[1722319690090,0.0650942,66684.0,66683.0,0.867793]
[1722319690509,0.0636,66684.0,66683.0,0.867793]
[1722319690821,0.0636,66684.0,66683.0,0.627852]
[1722319690958,0.0636,66684.0,66683.0,0.387911]
[1722319691160,0.0650942,66684.0,66683.0,0.387911]
[1722319691896,0.08861953,66684.0,66683.0,0.028]
[1722319692898,0.17071953,66684.0,66683.0,0.028]
[1722319693099,0.16922533,66684.0,66683.0,0.028]
[1722319693914,0.1457,66684.0,66683.0,0.028]
[1722319696331,0.1457,66684.0,66683.0,0.14797]
[1722319697052,0.1457,66684.0,66683.0,0.028]
[1722319697255,0.16922621,66684.0,66683.0,0.387911]
[1722319697671,0.16922621,66684.0,66683.0,0.14797]
[1722319698361,0.16922621,66684.0,66683.0,0.028]
[1722319698722,0.16922621,66684.0,66683.0,0.148883]
[1722319701269,0.16922621,66684.0,66683.0,0.388824]
[1722319702791,0.16922621,66684.0,66683.0,0.148883]
[1722319703876,0.16922621,66684.0,66683.0,0.388824]
[1722319704022,0.16922621,66684.0,66683.0,0.628765]
[1722319704842,0.16922621,66684.0,66683.0,0.388824]
[1722319705105,0.16922621,66684.0,66683.0,0.628765]
[1722319705106,0.08712621,66684.0,66683.0,0.628765]
[1722319705280,0.0636,66684.0,66683.0,0.628765]
[1722319705683,0.14715,66688.0,66683.0,0.028913]
[1722319705888,0.14715,66688.0,66687.0,0.599815]
[1722319707311,0.14715,66688.0,66687.0,0.613815]
[1722319707714,0.14715,66688.0,66687.0,0.622815]
[1722319708710,0.17067469,66688.0,66687.0,0.622815]
[1722319709381,0.02697469,66688.0,66687.0,0.874741]
[1722319709604,0.02697469,66688.0,66687.0,1.59411087]
[1722319709787,0.00345,66688.0,66687.0,1.59411087]
[1722319710249,0.47415,66696.0,66695.0,0.359847]
[1722319710250,0.4726,66696.0,66695.0,0.359847]
[1722319710451,0.4726,66696.0,66693.0,0.11995]
[1722319710452,0.0602,66695.0,66693.0,0.11995]
[1722319710654,0.10008153,66696.0,66690.0,0.239912]
[1722319710655,0.0602,66693.0,66690.0,0.239912]
[1722319710891,0.0602,66693.0,66692.0,0.359862]
[1722319711096,0.0602,66693.0,66690.0,0.239912]
[1722319711097,0.07188208,66693.0,66690.0,0.119956]
[1722319711239,0.0884,66696.0,66687.0,0.014]
[1722319711240,0.0633,66691.0,66687.0,0.014]
[1722319711439,0.08948208,66692.0,66688.0,0.119961]
[1722319711440,0.00125199,66689.0,66688.0,0.119961]
[1722319711638,0.01293407,66689.0,66688.0,0.119961]
[1722319711839,0.01293407,66689.0,66688.0,0.359884]
[1722319712053,0.01293407,66689.0,66688.0,0.119961]
[1722319712248,0.01293407,66689.0,66688.0,0.359884]
[1722319712453,0.01168208,66689.0,66688.0,0.359884]
[1722319712823,0.01306434,66689.0,66688.0,0.613807]
[1722319713020,0.03658823,66689.0,66688.0,0.613807]
[1722319713423,0.01306434,66689.0,66688.0,0.627807]
[1722319713903,0.01306434,66689.0,66688.0,0.387884]
[1722319714098,0.01306434,66689.0,66688.0,0.627807]
[1722319715402,0.01306434,66689.0,66688.0,0.387884]
[1722319716668,0.03658808,66689.0,66688.0,0.387884]
[1722319717074,0.01306434,66689.0,66688.0,0.387884]
[1722319718937,0.01168208,66689.0,66688.0,0.387884]
[1722319719291,0.01317628,66689.0,66688.0,0.387884]
[1722319719950,0.01317628,66689.0,66688.0,0.147961]
[1722319720165,0.01317628,66689.0,66688.0,0.028]
[1722319720166,0.05809404,66689.0,66688.0,0.028]
[1722319720346,0.08161777,66689.0,66688.0,0.028]
[1722319720547,0.92673585,66689.0,66688.0,0.028]
[1722319720748,1.10614501,66689.0,66688.0,0.028]
[1722319721000,1.39584163,66689.0,66688.0,0.028]
[1722319721147,1.53208912,66689.0,66688.0,0.028]
[1722319721355,1.3840038,66689.0,66688.0,0.028]
[1722319721559,1.3840038,66689.0,66688.0,0.014]
[1722319722008,1.3840038,66689.0,66688.0,0.025]
[1722319722225,1.3225441,66689.0,66688.0,0.011]
[1722319722517,1.30870049,66689.0,66688.0,0.011]
[1722319722727,1.30872628,66689.0,66688.0,0.018]
[1722319722935,1.30872628,66689.0,66688.0,0.007]
[1722319723546,1.06880728,66689.0,66688.0,0.007]
[1722319723697,1.06880728,66689.0,66683.0,0.000913]
[1722319723698,0.40748094,66689.0,66683.0,0.000913]
[1722319723899,0.40748094,66689.0,66683.0,0.360824]
[1722319723900,0.08989158,66684.0,66683.0,0.360824]
[1722319724151,0.10157748,66684.0,66683.0,0.120883]
[1722319724351,0.0116859,66684.0,66683.0,0.120883]
[1722319724552,0.08060375,66684.0,66683.0,0.000913]
[1722319724757,0.0131801,66684.0,66683.0,0.000913]
[1722319725153,0.0131801,66684.0,66683.0,0.011913]
[1722319725359,0.01317936,66684.0,66683.0,0.011913]
[1722319725774,0.0014942,66684.0,66683.0,0.011913]
[1722319726331,0.09142334,66684.0,66683.0,0.003913]
[1722319726538,0.11391272,66685.0,66683.0,0.003913]
[1722319726705,0.11391272,66685.0,66683.0,0.000913]
[1722319726706,0.08992938,66684.0,66683.0,0.000913]
[1722319726851,0.08992938,66684.0,66683.0,0.008913]
[1722319727495,0.08993402,66684.0,66683.0,0.014913]
[1722319727762,0.0014942,66685.0,66683.0,0.014913]
[1722319727763,0.11391272,66685.0,66683.0,0.021913]
[1722319728004,0.11346086,66684.0,66683.0,0.021913]
[1722319728163,0.02352667,66684.0,66683.0,0.021913]
[1722319728358,0.02502087,66684.0,66683.0,0.021913]
[1722319729115,0.02502087,66684.0,66683.0,0.014913]
[1722319729523,0.02502087,66684.0,66683.0,0.022913]
[1722319730493,0.02502087,66684.0,66683.0,0.142883]
[1722319730494,0.11494145,66684.0,66683.0,0.142883]
[1722319730694,0.03521094,66684.0,66683.0,0.622765]
[1722319730941,0.03521094,66684.0,66683.0,0.768965]
[1722319731343,0.03521094,66684.0,66683.0,1.008906]
[1722319731539,0.03521094,66684.0,66683.0,0.768965]
[1722319731716,0.03521094,66684.0,66683.0,0.464224]
[1722319731944,0.01168427,66684.0,66683.0,0.382824]
[1722319732185,0.0014942,66686.0,66685.0,0.119967]
[1722319732186,0.04644974,66686.0,66685.0,0.119967]
[1722319732335,0.05663947,66686.0,66685.0,0.119967]
[1722319732539,0.05663963,66686.0,66685.0,0.359901]
[1722319732928,0.01168393,66686.0,66685.0,0.359901]
[1722319733225,0.01317813,66686.0,66685.0,0.359901]
[1722319733629,0.01317813,66686.0,66685.0,0.372901]
[1722319734447,0.05663963,66686.0,66685.0,0.132967]
[1722319734730,0.05663963,66686.0,66685.0,0.013]
[1722319734731,0.07168393,66686.0,66685.0,0.013]
[1722319734931,0.14061169,66686.0,66685.0,0.027]
[1722319735139,0.28410205,66686.0,66685.0,0.027]
[1722319735334,0.21517429,66686.0,66685.0,0.013]
[1722319735538,0.19164893,66686.0,66685.0,0.027]
[1722319735674,0.19314313,66686.0,66685.0,0.027]
[1722319735874,0.19314313,66686.0,66683.0,0.000913]
[1722319736229,0.0014942,66684.0,66683.0,0.000913]
[1722319736437,0.01317813,66684.0,66683.0,0.000913]
[1722319737039,0.13314613,66684.0,66683.0,0.012913]
[1722319737240,0.01317813,66684.0,66683.0,0.012913]
[1722319737446,0.10308954,66684.0,66683.0,0.012913]
[1722319737600,0.10308954,66684.0,66683.0,0.000913]
[1722319737799,0.01317813,66684.0,66683.0,0.000913]
[1722319738010,0.01317813,66684.0,66683.0,0.009913]
[1722319738819,0.0367042,66684.0,66683.0,0.009913]
[1722319739016,0.25311513,66684.0,66683.0,0.023913]
[1722319739260,0.13314613,66684.0,66683.0,0.014913]
[1722319739621,0.13314613,66684.0,66683.0,0.023913]
[1722319740155,0.13314613,66684.0,66683.0,0.014913]
[1722319740359,0.13314613,66684.0,66683.0,0.023913]
[1722319741237,0.37308313,66684.0,66683.0,0.023913]
[1722319741403,0.13314613,66684.0,66683.0,0.023913]
[1722319741835,1.00190122,66684.0,66683.0,0.023913]
[1722319742037,1.00040702,66684.0,66683.0,0.023913]
[1722319742275,1.07377143,66684.0,66683.0,0.023913]
[1722319742480,1.09729821,66684.0,66683.0,0.023913]
[1722319742897,1.07377143,66684.0,66683.0,0.000913]
[1722319743111,1.07377143,66684.0,66683.0,0.008913]
[1722319743432,1.0741588,66684.0,66683.0,0.022913]
[1722319744108,1.0120933,66684.0,66683.0,0.022913]
[1722319744423,1.07421052,66684.0,66683.0,0.022913]
[1722319746025,1.09773825,66684.0,66683.0,0.022913]
[1722319746838,1.07421052,66684.0,66683.0,0.022913]
[1722319747648,1.07415588,66684.0,66683.0,0.022913]
[1722319748056,1.0120933,66684.0,66683.0,0.022913]
[1722319748864,1.12440277,66684.0,66683.0,0.022913]
[1722319749846,1.3018339,66684.0,66683.0,0.022913]
[1722319750191,1.34259373,66684.0,66683.0,0.022913]
[1722319750344,1.31906585,66684.0,66683.0,0.022913]
[1722319750735,1.25757597,66684.0,66683.0,0.022913]
[1722319750983,1.3190773,66684.0,66683.0,0.008913]
[1722319751182,1.55178235,66684.0,66683.0,0.008913]
[1722319751379,1.54177207,66684.0,66683.0,0.004913]
[1722319751582,1.54177207,66684.0,66683.0,0.000913]
[1722319751751,1.54377207,66684.0,66683.0,0.000913]
[1722319751968,1.54377207,66684.0,66683.0,0.002913]
[1722319752131,1.54177207,66684.0,66683.0,0.002913]
[1722319752534,1.53800194,66684.0,66683.0,0.002913]
[1722319752822,0.743395,66667.0,66666.0,0.000913]
[1722319753094,1.00395834,66667.0,66666.0,0.000913]
[1722319753310,1.25494709,66667.0,66666.0,0.000913]
[1722319753651,1.54093387,66667.0,66666.0,0.000913]
[1722319753858,1.42758175,66667.0,66666.0,0.000913]
[1722319754057,1.49955016,66667.0,66666.0,0.000913]
[1722319754296,1.48955016,66667.0,66666.0,0.000913]
[1722319754464,1.48955016,66667.0,66666.0,0.014913]
[1722319754465,1.42758175,66667.0,66666.0,0.014913]
[1722319754683,1.42758175,66667.0,66666.0,0.000913]
[1722319754817,1.51834702,66667.0,66666.0,0.007913]
[1722319755171,1.51834702,66667.0,66666.0,0.013913]
[1722319755352,1.42758175,66667.0,66666.0,0.006913]
[1722319755583,1.42858175,66667.0,66666.0,0.006913]
[1722319755959,1.57927607,66667.0,66666.0,0.006913]
[1722319756341,1.65043233,66667.0,66666.0,0.006913]
[1722319756807,1.67396839,66667.0,66666.0,0.006913]
[1722319757102,1.61175759,66667.0,66666.0,0.006913]
[1722319757330,1.67425617,66667.0,66666.0,0.006913]
[1722319758891,1.52356185,66667.0,66666.0,0.006913]
[1722319760976,1.52346158,66667.0,66666.0,0.006913]
[1722319761264,1.63553195,66667.0,66666.0,0.006913]
[1722319762306,1.52346158,66667.0,66666.0,0.006913]
[1722319762778,1.63552028,66667.0,66666.0,0.006913]
[1722319763648,1.52339764,66667.0,66666.0,0.006913]
[1722319763890,1.63544538,66667.0,66666.0,0.006913]
[1722319764089,1.69557338,66667.0,66666.0,0.006913]
[1722319764293,1.58352564,66667.0,66666.0,0.006913]
[1722319764603,1.67648538,66667.0,66666.0,0.006913]
[1722319764903,1.49986158,66667.0,66666.0,0.006913]
[1722319765108,1.43764045,66667.0,66666.0,0.006913]
[1722319765285,1.50485994,66667.0,66666.0,0.006913]
[1722319765489,1.43764045,66667.0,66666.0,0.006913]
[1722319768284,1.48245129,66667.0,66666.0,0.006913]
[1722319768486,1.55435439,66667.0,66666.0,0.006913]
[1722319769707,1.50954355,66667.0,66666.0,0.006913]
[1722319770283,1.63880584,66667.0,66666.0,0.006913]
[1722319770504,1.43764045,66667.0,66666.0,0.006913]
[1722319771093,1.40194675,66667.0,66666.0,0.006913]
[1722319771637,1.09904875,66667.0,66666.0,0.006913]
[1722319771844,1.05424245,66667.0,66666.0,0.006913]
[1722319773244,0.57424645,66667.0,66666.0,0.006913]
[1722319773485,0.57424645,66667.0,66666.0,0.151913]
[1722319773486,0.001,66667.0,66666.0,0.151913]
[1722319774275,0.04480221,66676.0,66668.0,0.119997]
[1722319774509,0.04480221,66676.0,66666.0,0.151913]
[1722319774510,0.119987,66674.0,66667.0,0.119997]
[1722319774706,0.47796621,66677.0,66667.0,0.119997]
[1722319774707,0.27062104,66673.0,66667.0,0.119997]
[1722319774988,0.433164,66677.0,66666.0,0.310815]
[1722319775160,0.37128729,66676.0,66669.0,0.119995]
[1722319775366,0.22065525,66675.0,66669.0,0.119995]
[1722319775592,0.15063304,66674.0,66669.0,0.119995]
[1722319776669,0.15063304,66674.0,66667.0,0.317097]
[1722319776868,0.15063304,66674.0,66668.0,0.119996]
[1722319777438,0.02353235,66673.0,66669.0,0.011]
[1722319777995,0.02353235,66673.0,66668.0,0.239994]
[1722319778224,0.02353235,66673.0,66672.0,0.50367]
[1722319778504,0.4657,66679.0,66672.0,0.50367]
[1722319778505,0.4657,66679.0,66674.0,0.119985]
[1722319778704,0.4657,66679.0,66672.0,0.1437]
[1722319778705,0.62540001,66679.0,66672.0,0.1437]
[1722319779490,0.27967701,66679.0,66673.0,0.119988]
[1722319779848,0.15970001,66679.0,66672.0,0.1437]
[1722319780148,0.04480787,66682.0,66681.0,0.119974]
[1722319780149,0.04483302,66682.0,66681.0,0.119974]
[1722319780322,0.1932,66690.0,66683.0,0.20167]
[1722319780323,0.04483302,66687.0,66683.0,0.20167]
[1722319780472,0.1932,66690.0,66683.0,0.0817]
[1722319780473,0.15063304,66686.0,66683.0,0.0817]
[1722319780681,0.119967,66685.0,66683.0,0.0817]
[1722319781267,0.16480452,66685.0,66683.0,0.0817]
[1722319781671,0.1434959,66685.0,66683.0,0.0817]
[1722319782083,0.119967,66685.0,66683.0,0.0817]
[1722319782787,0.119967,66685.0,66679.0,0.1408]
[1722319782788,0.1932,66684.0,66679.0,0.1408]
[1722319783067,0.1932,66684.0,66668.0,0.239992]
[1722319783068,0.29653175,66683.0,66674.0,0.0661]
[1722319783186,0.1932,66677.0,66674.0,0.0661]
[1722319783391,0.313181,66677.0,66674.0,0.0661]
[1722319783788,0.119983,66676.0,66674.0,0.0661]
[1722319784025,0.1932,66677.0,66674.0,0.0661]
[1722319784225,0.313181,66677.0,66674.0,0.0661]
[1722319784463,0.313181,66677.0,66674.0,0.0741]
[1722319784657,0.313181,66677.0,66674.0,0.0661]
[1722319785205,0.1932,66677.0,66674.0,0.0801]
[1722319785381,0.21672944,66677.0,66674.0,0.0801]
[1722319785709,0.1932,66677.0,66674.0,0.0941]
[1722319786445,0.31618598,66681.0,66674.0,0.0941]
[1722319786446,0.0448607,66686.0,66679.0,0.0768]
[1722319786650,0.15063304,66686.0,66683.0,0.0637]
[1722319786873,0.30720506,66691.0,66683.0,0.0637]
[1722319786874,0.01168461,66685.0,66684.0,0.199568]
[1722319787208,0.0069,66696.0,66695.0,0.119949]
[1722319787348,0.01858292,66696.0,66695.0,0.199549]
[1722319787688,0.01858292,66696.0,66695.0,0.439447]
[1722319787912,0.01858292,66696.0,66695.0,0.501547]
[1722319788116,0.01858292,66696.0,66695.0,0.741445]
[1722319788258,0.01858292,66696.0,66695.0,0.501547]
[1722319788459,0.01858292,66696.0,66695.0,0.515547]
[1722319788658,0.01958292,66696.0,66695.0,0.268649]
[1722319789109,0.04310606,66696.0,66695.0,0.282649]
[1722319789288,0.03142314,66696.0,66695.0,0.268649]
[1722319790030,0.0069,66696.0,66695.0,0.261649]
[1722319790402,0.0079,66696.0,66695.0,0.275649]
[1722319790614,0.0079,66696.0,66695.0,0.289649]
[1722319790814,0.0079,66696.0,66695.0,0.529547]
[1722319792313,0.0314231,66696.0,66695.0,0.529547]
[1722319793371,0.0314231,66696.0,66695.0,0.769445]
[1722319794327,0.0314231,66696.0,66695.0,1.009343]